[Event "*** Titled Tuesday Blitz"]
[Site "Chess.com"]
[Date "2021.04.06"]
[Round "10"]
[White "kuba2006"]
[Black "MalyDominator"]
[Result "0-1"]
[WhiteElo "2337"]
[BlackElo "2482"]
[TimeControl "180+1"]
[EndTime "11:56:24 PDT"]
[Termination "MalyDominator won by resignation"]

1. b3 {[%clk 0:03:00.9]} 1... Nf6 {[%clk 0:02:59.5]} 2. Bb2 {[%clk 0:03:00.4]}
2... e6 {[%clk 0:03:00]} 3. e3 {[%clk 0:02:57.4]} 3... d5 {[%clk 0:03:00.2]} 4.
Nf3 {[%clk 0:02:51.9]} 4... Be7 {[%clk 0:03:00.5]} 5. Be2 {[%clk 0:02:50.8]}
5... O-O {[%clk 0:03:00.7]} 6. O-O {[%clk 0:02:51]} 6... c5 {[%clk 0:03:01]} 7.
d4 {[%clk 0:02:49.1]} 7... b6 {[%clk 0:03:01.1]} 8. Nbd2 {[%clk 0:02:45.8]} 8...
Bb7 {[%clk 0:03:01.2]} 9. c4 {[%clk 0:02:27.9]} 9... Nbd7 {[%clk 0:02:58.9]} 10.
Ne5 {[%clk 0:02:24.6]} 10... Nxe5 {[%clk 0:02:28.5]} 11. dxe5 {[%clk 0:02:23.5]}
11... Ne4 {[%clk 0:02:27.4]} 12. Nxe4 {[%clk 0:02:20.3]} 12... dxe4 {[%clk
0:02:27.5]} 13. Qc2 {[%clk 0:02:20.3]} 13... Qc7 {[%clk 0:02:24.4]} 14. Rad1
{[%clk 0:02:16.3]} 14... Rfd8 {[%clk 0:02:24.2]} 15. Rxd8+ {[%clk 0:02:13.3]}
15... Rxd8 {[%clk 0:02:23.7]} 16. Rd1 {[%clk 0:02:13.8]} 16... Rd7 {[%clk
0:02:23.4]} 17. Rxd7 {[%clk 0:02:08.7]} 17... Qxd7 {[%clk 0:02:24.3]} 18. Qd1
{[%clk 0:02:08.9]} 18... Qxd1+ {[%clk 0:02:20.8]} 19. Bxd1 {[%clk 0:02:08.6]}
19... f5 {[%clk 0:02:13.8]} 20. f4 {[%clk 0:02:07.2]} 20... exf3 {[%clk
0:01:59.9]} 21. gxf3 {[%clk 0:02:08.1]} 21... g5 {[%clk 0:01:57.3]} 22. h3
{[%clk 0:01:47.9]} 22... Kf7 {[%clk 0:01:57]} 23. f4 {[%clk 0:01:46.6]} 23...
Kg6 {[%clk 0:01:56.4]} 24. Bc1 {[%clk 0:01:38.7]} 24... Be4 {[%clk 0:01:50]} 25.
Kh2 {[%clk 0:01:36.6]} 25... h5 {[%clk 0:01:41.5]} 26. Kg3 {[%clk 0:01:33]}
26... g4 {[%clk 0:01:04.5]} 27. h4 {[%clk 0:01:28.3]} 27... Kf7 {[%clk
0:01:04.3]} 28. a4 {[%clk 0:01:16]} 28... Ke8 {[%clk 0:01:02.6]} 29. Bd2 {[%clk
0:01:03.2]} 29... Kd7 {[%clk 0:01:01.7]} 30. Bc3 {[%clk 0:00:58.9]} 30... Kc6
{[%clk 0:01:01.2]} 31. Bd2 {[%clk 0:00:45.1]} 31... Bd3 {[%clk 0:00:50.7]} 32.
Bc3 {[%clk 0:00:33.4]} 32... a6 {[%clk 0:00:50.4]} 33. Bd2 {[%clk 0:00:22.4]}
33... b5 {[%clk 0:00:50]} 34. cxb5+ {[%clk 0:00:15.3]} 34... axb5 {[%clk
0:00:50.2]} 35. axb5+ {[%clk 0:00:14.7]} 35... Kxb5 {[%clk 0:00:51.1]} 36. Bc3
{[%clk 0:00:14.1]} 36... Bd8 {[%clk 0:00:44.2]} 37. Bd2 {[%clk 0:00:07.5]} 37...
Ba5 {[%clk 0:00:43.3]} 38. Bc1 {[%clk 0:00:04.9]} 38... Be1+ {[%clk 0:00:42.7]}
39. Kg2 {[%clk 0:00:04.2]} 39... Bxh4 {[%clk 0:00:42.7]} 40. Ba3 {[%clk
0:00:04.1]} 40... Be1 {[%clk 0:00:40.7]} 41. Bb2 {[%clk 0:00:01.4]} 41... h4
{[%clk 0:00:34.7]} 42. Kh2 {[%clk 0:00:01.5]} 42... Bg3+ {[%clk 0:00:28.3]} 43.
Kg2 {[%clk 0:00:01.5]} 43... Be4+ {[%clk 0:00:28.2]} 44. Kg1 {[%clk 0:00:01.7]}
44... h3 {[%clk 0:00:28.7]} 0-1

[Event "*** Titled Tuesday Blitz"]
[Site "Chess.com"]
[Date "2021.04.06"]
[Round "10"]
[White "VladimirBugayev"]
[Black "JQuiroga18"]
[Result "1-0"]
[WhiteElo "2259"]
[BlackElo "2391"]
[TimeControl "180+1"]
[EndTime "11:56:25 PDT"]
[Termination "VladimirBugayev won by checkmate"]

1. e4 {[%clk 0:03:00.9]} 1... c5 {[%clk 0:02:59.3]} 2. Nc3 {[%clk 0:03:00.1]}
2... Nc6 {[%clk 0:02:56.4]} 3. Bb5 {[%clk 0:02:59.5]} 3... Nd4 {[%clk
0:02:56.2]} 4. Nf3 {[%clk 0:02:59.1]} 4... a6 {[%clk 0:02:53.7]} 5. Bd3 {[%clk
0:02:58.7]} 5... e6 {[%clk 0:02:49.8]} 6. O-O {[%clk 0:02:56.9]} 6... b5 {[%clk
0:02:48.5]} 7. Nxd4 {[%clk 0:02:54.9]} 7... cxd4 {[%clk 0:02:47.9]} 8. Ne2
{[%clk 0:02:55.4]} 8... e5 {[%clk 0:02:47.3]} 9. a4 {[%clk 0:02:51.2]} 9... b4
{[%clk 0:02:45.7]} 10. c3 {[%clk 0:02:44.2]} 10... bxc3 {[%clk 0:02:44.4]} 11.
dxc3 {[%clk 0:02:44.4]} 11... dxc3 {[%clk 0:02:44.3]} 12. Nxc3 {[%clk
0:02:43.9]} 12... Nf6 {[%clk 0:02:43.5]} 13. f4 {[%clk 0:02:43.1]} 13... d6
{[%clk 0:02:39.2]} 14. b4 {[%clk 0:02:02.7]} 14... Qb6+ {[%clk 0:02:37.8]} 15.
Kh1 {[%clk 0:01:55]} 15... Qxb4 {[%clk 0:02:37.7]} 16. Qc2 {[%clk 0:01:44.9]}
16... Be7 {[%clk 0:02:27.5]} 17. Ba3 {[%clk 0:01:45.2]} 17... Qd4 {[%clk
0:02:26.5]} 18. fxe5 {[%clk 0:01:42.3]} 18... dxe5 {[%clk 0:02:24.1]} 19. Bxe7
{[%clk 0:01:41.6]} 19... Kxe7 {[%clk 0:02:25]} 20. Rxf6 {[%clk 0:00:54.9]} 20...
gxf6 {[%clk 0:02:16.9]} 21. Nd5+ {[%clk 0:00:54.3]} 21... Kf8 {[%clk 0:02:16.9]}
22. Rf1 {[%clk 0:00:52.9]} 22... Be6 {[%clk 0:02:09.5]} 23. Nxf6 {[%clk
0:00:33.3]} 23... Rc8 {[%clk 0:02:07]} 24. Qd2 {[%clk 0:00:33.4]} 24... h5
{[%clk 0:01:58.1]} 25. Qe2 {[%clk 0:00:22.2]} 25... Bg4 {[%clk 0:01:43.6]} 26.
Nxg4 {[%clk 0:00:20.9]} 26... hxg4 {[%clk 0:01:44.5]} 27. Bxa6 {[%clk
0:00:18.6]} 27... Rc6 {[%clk 0:01:38.1]} 28. Bb5 {[%clk 0:00:14.5]} 28... Rch6
{[%clk 0:01:31]} 29. h3 {[%clk 0:00:14.4]} 29... gxh3 {[%clk 0:01:20.7]} 30. g3
{[%clk 0:00:14.3]} 30... h2 {[%clk 0:01:16.3]} 31. Qf3 {[%clk 0:00:11.4]} 31...
R8h7 {[%clk 0:01:08.3]} 32. Bc6 {[%clk 0:00:07.1]} 32... Ke7 {[%clk 0:01:07.2]}
33. Bd5 {[%clk 0:00:06.9]} 33... f6 {[%clk 0:00:49.8]} 34. Qf5 {[%clk
0:00:06.9]} 34... Qb6 {[%clk 0:00:49.2]} 35. Rc1 {[%clk 0:00:05]} 35... Rh5
{[%clk 0:00:42.4]} 36. Qc8 {[%clk 0:00:04.3]} 36... Qg1+ {[%clk 0:00:33]} 37.
Rxg1 {[%clk 0:00:03.2]} 37... hxg1=Q+ {[%clk 0:00:33.9]} 38. Kxg1 {[%clk
0:00:03.9]} 38... Rh1+ {[%clk 0:00:34]} 39. Kg2 {[%clk 0:00:04.5]} 39... R7h2+
{[%clk 0:00:33.3]} 40. Kf3 {[%clk 0:00:05]} 40... f5 {[%clk 0:00:33]} 41. Qe6+
{[%clk 0:00:02.9]} 41... Kd8 {[%clk 0:00:32.8]} 42. exf5 {[%clk 0:00:03.1]}
42... Rf1+ {[%clk 0:00:28.4]} 43. Kg4 {[%clk 0:00:03.5]} 43... e4 {[%clk
0:00:28.4]} 44. Qd6+ {[%clk 0:00:03.6]} 44... Kc8 {[%clk 0:00:28.2]} 45. Bc6
{[%clk 0:00:03.2]} 45... e3 {[%clk 0:00:25.6]} 46. Qd7+ {[%clk 0:00:03.1]} 46...
Kb8 {[%clk 0:00:26]} 47. Qb7# {[%clk 0:00:03.7]} 1-0

[Event "*** Titled Tuesday Blitz"]
[Site "Chess.com"]
[Date "2021.04.06"]
[Round "10"]
[White "Volodar_Murzin"]
[Black "Two_Towers_Krakow"]
[Result "0-1"]
[WhiteElo "2717"]
[BlackElo "2536"]
[TimeControl "180+1"]
[EndTime "11:56:26 PDT"]
[Termination "Two_Towers_Krakow won on time"]

1. e4 {[%clk 0:03:00.9]} 1... c5 {[%clk 0:02:59]} 2. Nf3 {[%clk 0:02:56.1]} 2...
d6 {[%clk 0:02:58.7]} 3. Bb5+ {[%clk 0:02:53.9]} 3... Bd7 {[%clk 0:02:57.1]} 4.
Bxd7+ {[%clk 0:02:51.8]} 4... Nxd7 {[%clk 0:02:58]} 5. O-O {[%clk 0:02:50.7]}
5... Ngf6 {[%clk 0:02:57.5]} 6. Qe2 {[%clk 0:02:49.1]} 6... e6 {[%clk
0:02:57.8]} 7. c3 {[%clk 0:02:48.6]} 7... Be7 {[%clk 0:02:58.2]} 8. d4 {[%clk
0:02:47.3]} 8... cxd4 {[%clk 0:02:59.1]} 9. cxd4 {[%clk 0:02:46.6]} 9... d5
{[%clk 0:02:59.7]} 10. e5 {[%clk 0:02:46.2]} 10... Ne4 {[%clk 0:03:00.1]} 11.
Rd1 {[%clk 0:02:45]} 11... O-O {[%clk 0:02:47.8]} 12. Ne1 {[%clk 0:02:40.6]}
12... f6 {[%clk 0:02:15.2]} 13. f3 {[%clk 0:02:19.7]} 13... Ng5 {[%clk
0:02:14.3]} 14. exf6 {[%clk 0:02:16.6]} 14... Bxf6 {[%clk 0:02:14.3]} 15. Bxg5
{[%clk 0:02:00.7]} 15... Bxg5 {[%clk 0:02:14.4]} 16. Qxe6+ {[%clk 0:02:00.9]}
16... Kh8 {[%clk 0:02:15]} 17. Nc3 {[%clk 0:02:01]} 17... Nb6 {[%clk 0:02:11.6]}
18. Kh1 {[%clk 0:01:50.4]} 18... Rf6 {[%clk 0:01:52.8]} 19. Qg4 {[%clk
0:01:44.8]} 19... Rf4 {[%clk 0:01:51.8]} 20. Qe6 {[%clk 0:01:25.5]} 20... Qf8
{[%clk 0:01:26.8]} 21. Nd3 {[%clk 0:01:17.6]} 21... Rxf3 {[%clk 0:01:08.7]} 22.
Nxd5 {[%clk 0:00:52.4]} 22... Re8 {[%clk 0:00:37.2]} 23. Qg4 {[%clk 0:00:49.9]}
23... Rf5 {[%clk 0:00:12.4]} 24. Nxb6 {[%clk 0:00:44.7]} 24... axb6 {[%clk
0:00:13.3]} 25. Ne5 {[%clk 0:00:43.2]} 25... Bf4 {[%clk 0:00:13.1]} 26. Rf1
{[%clk 0:00:39]} 26... g6 {[%clk 0:00:13.2]} 27. Nd3 {[%clk 0:00:17.2]} 27...
Be3 {[%clk 0:00:11.7]} 28. Rxf5 {[%clk 0:00:14]} 28... gxf5 {[%clk 0:00:12.6]}
29. Qf3 {[%clk 0:00:09.3]} 29... Qf6 {[%clk 0:00:11.8]} 30. d5 {[%clk
0:00:04.4]} 30... Qd4 {[%clk 0:00:11.5]} 31. Rd1 {[%clk 0:00:04.1]} 31... f4
{[%clk 0:00:11.1]} 32. h3 {[%clk 0:00:03.7]} 32... Rg8 {[%clk 0:00:10.2]} 33.
Nf2 {[%clk 0:00:02.3]} 33... Qxb2 {[%clk 0:00:09.1]} 34. Ne4 {[%clk 0:00:02.9]}
34... Qg7 {[%clk 0:00:06.7]} 35. d6 {[%clk 0:00:03.4]} 35... h6 {[%clk
0:00:05.3]} 0-1

[Event "*** Titled Tuesday Blitz"]
[Site "Chess.com"]
[Date "2021.04.06"]
[Round "10"]
[White "GMJustin"]
[Black "Schack-Hugo"]
[Result "0-1"]
[WhiteElo "2263"]
[BlackElo "2213"]
[TimeControl "180+1"]
[EndTime "11:56:28 PDT"]
[Termination "Schack-Hugo won on time"]

1. e4 {[%clk 0:02:32.6]} 1... c5 {[%clk 0:02:52.8]} 2. Nf3 {[%clk 0:02:32.2]}
2... d6 {[%clk 0:02:50]} 3. d4 {[%clk 0:02:30]} 3... cxd4 {[%clk 0:02:50.5]} 4.
Qxd4 {[%clk 0:02:30.2]} 4... Nf6 {[%clk 0:02:50.2]} 5. Bb5+ {[%clk 0:02:14.5]}
5... Bd7 {[%clk 0:02:49.5]} 6. Bxd7+ {[%clk 0:02:11.2]} 6... Nbxd7 {[%clk
0:02:48.4]} 7. c4 {[%clk 0:02:07.5]} 7... g6 {[%clk 0:02:44.7]} 8. O-O {[%clk
0:02:05.2]} 8... Bg7 {[%clk 0:02:44.4]} 9. Nc3 {[%clk 0:02:05.1]} 9... O-O
{[%clk 0:02:44]} 10. Qe3 {[%clk 0:01:38.1]} 10... Ng4 {[%clk 0:02:41.7]} 11. Qd2
{[%clk 0:01:30.7]} 11... Nge5 {[%clk 0:02:38.7]} 12. Nxe5 {[%clk 0:01:26.5]}
12... Nxe5 {[%clk 0:02:39.6]} 13. b3 {[%clk 0:01:24.4]} 13... Qa5 {[%clk
0:02:34]} 14. Bb2 {[%clk 0:01:00.9]} 14... b5 {[%clk 0:02:25.2]} 15. cxb5 {[%clk
0:00:56.5]} 15... Rac8 {[%clk 0:02:02.1]} 16. Rac1 {[%clk 0:00:54.4]} 16... Rc7
{[%clk 0:01:45.7]} 17. Rfd1 {[%clk 0:00:07.8]} 17... Rfc8 {[%clk 0:01:43.9]} 18.
Kh1 {[%clk 0:00:05]} 18... Ng4 {[%clk 0:01:31.8]} 19. f3 {[%clk 0:00:02.8]}
19... Bh6 {[%clk 0:01:05]} 20. f4 {[%clk 0:00:02.9]} 20... Bg7 {[%clk
0:00:25.7]} 21. g3 {[%clk 0:00:02.8]} 21... Bxc3 {[%clk 0:00:24.8]} 22. Bxc3
{[%clk 0:00:02.7]} 22... Rxc3 {[%clk 0:00:24.2]} 23. Rxc3 {[%clk 0:00:02.4]}
23... Qxc3 {[%clk 0:00:24.1]} 24. Qxc3 {[%clk 0:00:02.5]} 24... Rxc3 {[%clk
0:00:24.3]} 25. Rd2 {[%clk 0:00:02.7]} 25... Ne3 {[%clk 0:00:21.1]} 26. Kg1
{[%clk 0:00:02.6]} 26... Rc1+ {[%clk 0:00:14.6]} 27. Kf2 {[%clk 0:00:02.8]}
27... Nd1+ {[%clk 0:00:13.5]} 28. Kg2 {[%clk 0:00:03.2]} 28... Nc3 {[%clk
0:00:11]} 29. Kf3 {[%clk 0:00:03.2]} 29... Rf1+ {[%clk 0:00:10.2]} 30. Kg2
{[%clk 0:00:03]} 30... Re1 {[%clk 0:00:10]} 31. a4 {[%clk 0:00:02.6]} 31... Rxe4
{[%clk 0:00:09.3]} 32. Kf3 {[%clk 0:00:02.6]} 32... Re1 {[%clk 0:00:08.7]} 33.
Rd3 {[%clk 0:00:02.4]} 33... Na2 {[%clk 0:00:07.4]} 34. Rd2 {[%clk 0:00:01.9]}
34... Nb4 {[%clk 0:00:06.9]} 35. Rd4 {[%clk 0:00:01.7]} 35... Nc2 {[%clk
0:00:05.7]} 36. Rc4 {[%clk 0:00:02]} 36... Rc1 {[%clk 0:00:02.2]} 0-1

[Event "*** Titled Tuesday Blitz"]
[Site "Chess.com"]
[Date "2021.04.06"]
[Round "10"]
[White "aljado"]
[Black "Michaelson_11"]
[Result "0-1"]
[WhiteElo "2109"]
[BlackElo "2204"]
[TimeControl "180+1"]
[EndTime "11:56:29 PDT"]
[Termination "Michaelson_11 won by checkmate"]

1. e4 {[%clk 0:03:00.9]} 1... c5 {[%clk 0:02:58.3]} 2. Nf3 {[%clk 0:03:00.2]}
2... Nc6 {[%clk 0:02:59.2]} 3. d4 {[%clk 0:02:58.4]} 3... cxd4 {[%clk
0:03:00.1]} 4. Nxd4 {[%clk 0:02:58.3]} 4... g6 {[%clk 0:03:00.8]} 5. Nc3 {[%clk
0:02:57.4]} 5... Nf6 {[%clk 0:03:01.3]} 6. Be3 {[%clk 0:02:57.2]} 6... Bg7
{[%clk 0:03:01.6]} 7. Be2 {[%clk 0:02:57.4]} 7... O-O {[%clk 0:03:01.4]} 8. O-O
{[%clk 0:02:57.6]} 8... d5 {[%clk 0:03:02]} 9. exd5 {[%clk 0:02:47]} 9... Nxd5
{[%clk 0:03:02.9]} 10. Nxd5 {[%clk 0:02:45.8]} 10... Qxd5 {[%clk 0:03:03.8]} 11.
Bf3 {[%clk 0:02:45.6]} 11... Qc4 {[%clk 0:02:59.3]} 12. Be2 {[%clk 0:02:24.2]}
12... Qd5 {[%clk 0:02:42.7]} 13. Bf3 {[%clk 0:02:20.7]} 13... Qc4 {[%clk
0:02:42.4]} 14. Be2 {[%clk 0:02:20.4]} 14... Qb4 {[%clk 0:02:38.5]} 15. Nxc6
{[%clk 0:01:44.5]} 15... bxc6 {[%clk 0:02:39.4]} 16. Rb1 {[%clk 0:01:41.3]}
16... Be6 {[%clk 0:02:32.8]} 17. c3 {[%clk 0:01:35.9]} 17... Qh4 {[%clk
0:02:23]} 18. Bf3 {[%clk 0:01:15]} 18... Rfd8 {[%clk 0:02:14.5]} 19. Qc1 {[%clk
0:01:14.3]} 19... Bxa2 {[%clk 0:02:10.4]} 20. Ra1 {[%clk 0:01:12.4]} 20... Bd5
{[%clk 0:02:06.7]} 21. Bg5 {[%clk 0:01:03.1]} 21... Qc4 {[%clk 0:02:01]} 22.
Bxe7 {[%clk 0:01:00]} 22... Re8 {[%clk 0:01:55.1]} 23. Bxd5 {[%clk 0:00:57.8]}
23... cxd5 {[%clk 0:01:37.4]} 24. Bg5 {[%clk 0:00:58]} 24... a5 {[%clk
0:01:14.8]} 25. Be3 {[%clk 0:00:55.6]} 25... a4 {[%clk 0:01:11]} 26. Qd2 {[%clk
0:00:54.3]} 26... a3 {[%clk 0:00:54.3]} 27. Bd4 {[%clk 0:00:48.7]} 27... Bxd4
{[%clk 0:00:42.1]} 28. cxd4 {[%clk 0:00:45]} 28... Re2 {[%clk 0:00:37]} 29. Qc1
{[%clk 0:00:28.7]} 29... Qxc1 {[%clk 0:00:26.8]} 30. Rfxc1 {[%clk 0:00:28]}
30... Rxb2 {[%clk 0:00:27.3]} 31. Kf1 {[%clk 0:00:20.6]} 31... a2 {[%clk
0:00:22]} 32. g3 {[%clk 0:00:20.2]} 32... Ra4 {[%clk 0:00:20.1]} 33. Kg2 {[%clk
0:00:19.2]} 33... Rxd4 {[%clk 0:00:17.7]} 34. Rc8+ {[%clk 0:00:19.4]} 34... Kg7
{[%clk 0:00:17.6]} 35. Ra8 {[%clk 0:00:19.2]} 35... Rdd2 {[%clk 0:00:18.2]} 36.
Ra5 {[%clk 0:00:16.3]} 36... Rxf2+ {[%clk 0:00:17]} 37. Kh3 {[%clk 0:00:16.8]}
37... Rxh2+ {[%clk 0:00:17.1]} 38. Kg4 {[%clk 0:00:15.1]} 38... d4 {[%clk
0:00:17.2]} 39. Ra7 {[%clk 0:00:12.7]} 39... Rhf2 {[%clk 0:00:16.4]} 40. Rd7
{[%clk 0:00:11.7]} 40... h5+ {[%clk 0:00:16.2]} 41. Kg5 {[%clk 0:00:06]} 41...
Rf5+ {[%clk 0:00:15.8]} 42. Kh4 {[%clk 0:00:05.3]} 42... Rh2# {[%clk 0:00:16.7]}
0-1

[Event "*** Titled Tuesday Blitz"]
[Site "Chess.com"]
[Date "2021.04.06"]
[Round "10"]
[White "prachiti01"]
[Black "Redzishchess"]
[Result "0-1"]
[WhiteElo "2171"]
[BlackElo "2340"]
[TimeControl "180+1"]
[EndTime "11:56:30 PDT"]
[Termination "Redzishchess won on time"]

1. e4 {[%clk 0:02:59.5]} 1... c5 {[%clk 0:02:59.6]} 2. c3 {[%clk 0:02:56.8]}
2... d5 {[%clk 0:02:59.2]} 3. exd5 {[%clk 0:02:54.7]} 3... Qxd5 {[%clk
0:03:00.1]} 4. d4 {[%clk 0:02:48.9]} 4... Nc6 {[%clk 0:03:00.4]} 5. Nf3 {[%clk
0:02:19.3]} 5... Nf6 {[%clk 0:03:00.5]} 6. Be2 {[%clk 0:01:58.2]} 6... Bf5
{[%clk 0:03:00.3]} 7. Na3 {[%clk 0:01:45.1]} 7... e6 {[%clk 0:02:56.6]} 8. O-O
{[%clk 0:01:40.6]} 8... O-O-O {[%clk 0:02:31.7]} 9. Qa4 {[%clk 0:01:16]} 9...
cxd4 {[%clk 0:01:46.5]} 10. cxd4 {[%clk 0:01:11.6]} 10... Bxa3 {[%clk
0:01:44.2]} 11. Qxa3 {[%clk 0:01:07.9]} 11... Qa5 {[%clk 0:01:24.9]} 12. Qxa5
{[%clk 0:01:00.3]} 12... Nxa5 {[%clk 0:01:25.8]} 13. Bd2 {[%clk 0:00:57.6]}
13... Nc6 {[%clk 0:01:25.4]} 14. Rac1 {[%clk 0:00:55.7]} 14... Kb8 {[%clk
0:01:25.1]} 15. Be3 {[%clk 0:00:50.6]} 15... Be4 {[%clk 0:01:23.7]} 16. Ne5
{[%clk 0:00:42.7]} 16... Rhf8 {[%clk 0:01:07.4]} 17. Rfd1 {[%clk 0:00:34.8]}
17... Nd7 {[%clk 0:00:43.1]} 18. Nc4 {[%clk 0:00:21.3]} 18... Bd5 {[%clk
0:00:39.1]} 19. a3 {[%clk 0:00:19.4]} 19... Nb6 {[%clk 0:00:34.7]} 20. Nxb6
{[%clk 0:00:17.7]} 20... axb6 {[%clk 0:00:35.6]} 21. Bf4+ {[%clk 0:00:13.6]}
21... Ka7 {[%clk 0:00:34.5]} 22. Bf1 {[%clk 0:00:12.2]} 22... Rc8 {[%clk
0:00:24.5]} 23. Be3 {[%clk 0:00:10.8]} 23... Na5 {[%clk 0:00:24]} 24. Rc3 {[%clk
0:00:08.9]} 24... Rxc3 {[%clk 0:00:23.1]} 25. bxc3 {[%clk 0:00:09.8]} 25... Rc8
{[%clk 0:00:23.8]} 26. Bd2 {[%clk 0:00:09.5]} 26... Nc4 {[%clk 0:00:14]} 27. Be1
{[%clk 0:00:09]} 27... Ka6 {[%clk 0:00:12.5]} 28. Rb1 {[%clk 0:00:05.9]} 28...
b5 {[%clk 0:00:11.6]} 29. Bxc4 {[%clk 0:00:04.5]} 29... Rxc4 {[%clk 0:00:11.1]}
30. f3 {[%clk 0:00:03.9]} 30... Ka5 {[%clk 0:00:10.6]} 31. Rb4 {[%clk
0:00:01.5]} 31... Rc8 {[%clk 0:00:07.8]} 32. Kf2 {[%clk 0:00:01]} 32... Bc4
{[%clk 0:00:07.8]} 33. Ke3 {[%clk 0:00:01.3]} 33... Rd8 {[%clk 0:00:08]} 34. Bd2
{[%clk 0:00:01.1]} 34... Rd5 {[%clk 0:00:08.9]} 0-1

[Event "*** Titled Tuesday Blitz"]
[Site "Chess.com"]
[Date "2021.04.06"]
[Round "10"]
[White "NTBT_DHS"]
[Black "pastouche06"]
[Result "1-0"]
[WhiteElo "2729"]
[BlackElo "2609"]
[TimeControl "180+1"]
[EndTime "11:56:32 PDT"]
[Termination "NTBT_DHS won by resignation"]

1. d4 {[%clk 0:02:59.7]} 1... d5 {[%clk 0:02:59.4]} 2. c4 {[%clk 0:02:59.9]}
2... e6 {[%clk 0:02:59.1]} 3. Nf3 {[%clk 0:03:00.8]} 3... Nf6 {[%clk 0:02:59]}
4. g3 {[%clk 0:03:01.5]} 4... dxc4 {[%clk 0:02:57.3]} 5. Bg2 {[%clk 0:03:02]}
5... Bd7 {[%clk 0:02:57.6]} 6. O-O {[%clk 0:03:02.9]} 6... Bc6 {[%clk
0:02:56.7]} 7. Qc2 {[%clk 0:03:03.6]} 7... Nbd7 {[%clk 0:02:50.4]} 8. Nbd2
{[%clk 0:03:04.2]} 8... b5 {[%clk 0:02:49]} 9. b3 {[%clk 0:03:01.7]} 9... Be7
{[%clk 0:02:24.4]} 10. bxc4 {[%clk 0:02:59.4]} 10... bxc4 {[%clk 0:02:25.3]} 11.
Qxc4 {[%clk 0:02:55.8]} 11... Bd5 {[%clk 0:02:21]} 12. Qc2 {[%clk 0:02:56]}
12... c5 {[%clk 0:02:10.2]} 13. e4 {[%clk 0:02:54]} 13... Bc6 {[%clk 0:02:10.4]}
14. e5 {[%clk 0:02:40.5]} 14... Nd5 {[%clk 0:02:07.1]} 15. Ba3 {[%clk
0:02:33.7]} 15... Rc8 {[%clk 0:02:03.1]} 16. dxc5 {[%clk 0:02:31.5]} 16... O-O
{[%clk 0:02:01.4]} 17. Ne4 {[%clk 0:02:30.9]} 17... Qa5 {[%clk 0:01:57]} 18. Bb2
{[%clk 0:02:14.8]} 18... Nxc5 {[%clk 0:01:46.7]} 19. Nd6 {[%clk 0:02:07.6]}
19... Ba4 {[%clk 0:01:27.6]} 20. Qd2 {[%clk 0:02:02.1]} 20... Qxd2 {[%clk
0:01:26.1]} 21. Nxd2 {[%clk 0:02:03]} 21... Rb8 {[%clk 0:01:16.9]} 22. Bd4
{[%clk 0:02:01.8]} 22... Nd3 {[%clk 0:00:56.6]} 23. Be4 {[%clk 0:01:46.2]} 23...
N3b4 {[%clk 0:00:50.3]} 24. Bxa7 {[%clk 0:01:43.8]} 24... Ra8 {[%clk 0:00:48.8]}
25. Bc5 {[%clk 0:01:41.9]} 25... Nc6 {[%clk 0:00:46.7]} 26. Rfc1 {[%clk
0:01:39.4]} 26... Nxe5 {[%clk 0:00:42.7]} 27. Bxd5 {[%clk 0:01:24.7]} 27... exd5
{[%clk 0:00:43.6]} 28. Nf5 {[%clk 0:01:24.6]} 28... Bxc5 {[%clk 0:00:31.4]} 29.
Rxc5 {[%clk 0:01:25.5]} 29... Rfd8 {[%clk 0:00:30.5]} 30. f4 {[%clk 0:01:06.1]}
30... Nd3 {[%clk 0:00:22.2]} 31. Rxd5 {[%clk 0:01:06.1]} 31... Rxd5 {[%clk
0:00:22.2]} 32. Ne7+ {[%clk 0:01:06.6]} 32... Kf8 {[%clk 0:00:22.7]} 33. Nxd5
{[%clk 0:01:07.5]} 33... Rd8 {[%clk 0:00:21.3]} 34. Nc3 {[%clk 0:01:07.9]} 34...
Bc6 {[%clk 0:00:21.1]} 35. Nb3 {[%clk 0:01:04.5]} 35... Nb4 {[%clk 0:00:18.6]}
36. Na5 {[%clk 0:00:56.9]} 36... Ba8 {[%clk 0:00:17.8]} 37. a3 {[%clk
0:00:56.7]} 37... Nc2 {[%clk 0:00:17.4]} 38. Rd1 {[%clk 0:00:40.8]} 38... Rxd1+
{[%clk 0:00:16.6]} 39. Nxd1 {[%clk 0:00:41.7]} 39... Nxa3 {[%clk 0:00:17.3]} 40.
Nc3 {[%clk 0:00:41.3]} 40... Nc2 {[%clk 0:00:16.9]} 41. Kf2 {[%clk 0:00:41.9]}
41... Nd4 {[%clk 0:00:16.3]} 42. Ke3 {[%clk 0:00:41]} 42... Nc6 {[%clk
0:00:16.3]} 43. Nc4 {[%clk 0:00:40.6]} 43... Ne7 {[%clk 0:00:15.1]} 44. Kd4
{[%clk 0:00:39.6]} 44... f6 {[%clk 0:00:13.9]} 45. Kc5 {[%clk 0:00:39.7]} 45...
Kf7 {[%clk 0:00:13]} 46. Nd6+ {[%clk 0:00:37.8]} 46... Ke6 {[%clk 0:00:12.5]}
47. Ncb5 {[%clk 0:00:38.7]} 47... Bg2 {[%clk 0:00:09.6]} 48. Nc7+ {[%clk
0:00:36.3]} 48... Kd7 {[%clk 0:00:10]} 49. Nce8 {[%clk 0:00:36.2]} 49... Nf5
{[%clk 0:00:07.9]} 50. Nxf5 {[%clk 0:00:33.9]} 50... Kxe8 {[%clk 0:00:08.3]} 51.
Nxg7+ {[%clk 0:00:34.8]} 51... Kf7 {[%clk 0:00:08.9]} 52. Nf5 {[%clk 0:00:35.2]}
52... Be4 {[%clk 0:00:08.6]} 53. Nd6+ {[%clk 0:00:35.2]} 1-0